bitfinex/quotes_ETHUSD_20250414
["timestamp","ask_amount","ask_price","bid_price","bid_amount"]
[1744589155813,5.01378,1595.6,1595.3,5.8056]
[1744589156321,11.36787512,1595.7,1595.3,10.8202]
[1744589156506,11.36787512,1595.7,1595.3,5.8055]
[1744589156901,11.36787512,1595.7,1595.3,10.8201]
[1744589157427,11.36787512,1595.7,1595.3,5.8055]
[1744589157603,11.36787512,1595.7,1595.3,10.82008]
[1744589158143,11.36787512,1595.7,1595.3,5.80548]
[1744589158297,6.35414512,1595.7,1595.3,10.82007]
[1744589158500,11.36779512,1595.7,1595.3,10.82007]
[1744589158946,11.36779512,1595.7,1595.3,5.80548]
[1744589159346,11.36779512,1595.7,1595.4,0.491929]
[1744589159845,6.676,1595.8,1595.5,0.7909]
[1744589160144,6.676,1595.8,1595.6,5.01364]
[1744589160359,6.676,1595.8,1595.7,0.48859642]
[1744589160566,6.676,1595.8,1595.6,5.01364]
[1744589160733,6.676,1595.8,1595.7,0.48859642]
[1744589160919,6.2117662,1596.0,1595.5,0.7909]
[1744589160920,1.1991862,1596.0,1595.5,0.7909]
[1744589161246,11.6896,1596.0,1595.7,0.7909]
[1744589161426,5.013,1595.9,1595.7,0.7909]
[1744589161619,8.01315,1595.9,1595.6,0.63907419]
[1744589161853,6.9943,1596.3,1595.8,0.7909]
[1744589162069,0.47375594,1596.4,1596.1,5.8031]
[1744589162235,5.01105,1596.5,1596.2,0.48334753]
[1744589162440,11.69213,1596.5,1596.2,0.48334753]
[1744589162762,1.66987,1596.5,1596.2,5.49513753]
[1744589163057,6.677,1596.6,1596.4,0.8004]
[1744589163262,5.01049,1596.7,1596.4,0.8004]
[1744589164092,10.02101,1596.7,1596.4,0.8004]
[1744589164227,5.01049,1596.7,1596.4,0.8004]
[1744589164427,5.01085,1596.6,1596.4,0.8004]
[1744589164725,5.01096,1596.5,1596.4,0.8004]
[1744589165061,5.55892188,1596.6,1596.4,0.8004]
[1744589165356,5.48021876,1596.7,1596.4,0.8004]
[1744589165555,10.49072876,1596.7,1596.4,0.8004]
[1744589165860,10.02167,1596.6,1596.5,0.47939808]
[1744589166055,0.46986876,1596.7,1596.5,0.47939808]
[1744589166262,16.69633,1596.8,1596.4,5.81157]
[1744589166462,11.68613,1596.8,1596.5,0.48005598]
[1744589166660,11.68613,1596.8,1596.4,5.81157]
[1744589166826,12.43012396,1596.8,1596.5,0.48034375]
[1744589167027,17.44035396,1596.8,1596.4,5.81157]
[1744589167252,17.90317539,1596.8,1596.5,0.48034375]
[1744589167451,17.90317539,1596.8,1596.4,5.81157]
[1744589167665,5.01036,1596.7,1596.5,0.48034375]
[1744589168360,6.80069054,1596.7,1596.5,0.48034375]
[1744589168562,8.01064,1596.6,1596.4,0.8004]
[1744589169257,13.02153,1596.6,1596.4,0.8004]
[1744589169566,5.01096,1596.5,1596.4,0.8004]
[1744589169741,5.01096,1596.5,1596.2,0.8004]
[1744589170082,5.01096,1596.5,1596.2,5.81225]
[1744589170232,5.01096,1596.5,1596.2,0.8004]
[1744589170679,5.0113,1596.4,1596.2,0.8004]
[1744589170840,10.49460201,1596.4,1596.2,0.8004]
[1744589171041,5.01169,1596.3,1596.0,0.8004]
[1744589171275,10.02421,1596.2,1596.0,0.8004]
[1744589171464,10.02534,1596.0,1595.8,0.8004]
[1744589171686,5.01255,1596.0,1595.8,0.8004]
[1744589172214,5.01284,1595.9,1595.8,0.8004]
[1744589172408,10.02592,1595.9,1595.6,0.8004]
[1744589172705,10.02657,1595.8,1595.6,0.8004]
[1744589172907,6.606,1596.0,1595.6,0.8004]
[1744589173207,6.9684,1596.5,1595.9,0.8004]
[1744589173366,6.606,1596.3,1596.1,5.01209]
[1744589173899,6.606,1596.3,1596.0,10.02489]
[1744589174100,6.606,1596.3,1596.1,5.01217]
[1744589174286,5.80904,1596.7,1596.1,5.01217]
[1744589174287,6.606,1596.6,1596.3,5.01144]
[1744589174606,6.606,1596.6,1596.4,0.47700261]
[1744589175378,6.606,1596.6,1596.2,10.824]
[1744589175579,6.606,1596.6,1596.3,5.07418862]
[1744589175774,6.606,1596.6,1596.4,5.01123]
[1744589176076,6.606,1596.6,1596.5,0.47444561]
[1744589177213,11.61664,1596.6,1596.3,5.01153]
[1744589177509,6.606,1596.6,1596.4,0.47357217]
[1744589178406,11.61669,1596.6,1596.4,0.47357217]
[1744589178711,6.606,1596.6,1596.4,0.47357217]
[1744589180620,3.7984,1596.9,1596.4,0.54850022]
[1744589180912,53.755,1597.1,1596.8,5.00999]
[1744589181117,53.755,1597.1,1596.4,5.07365505]
[1744589181118,53.755,1597.1,1596.6,5.01034]
[1744589181408,6.605,1597.2,1597.0,5.00939]
[1744589181590,5.00846,1597.3,1597.0,5.83069]
[1744589181794,5.00876,1597.2,1597.1,0.46804047]
[1744589182010,8.76366,1597.2,1597.1,0.46804047]
[1744589182176,5.00958,1597.0,1596.7,0.8213]
[1744589182366,6.604,1597.0,1596.8,0.46876892]
[1744589182572,11.61354,1597.0,1596.8,0.46876892]
[1744589182979,13.275806,1597.0,1596.8,0.46876892]
[1744589183185,5.0097,1596.9,1596.8,0.46876892]
[1744589183380,13.275786,1597.0,1596.8,0.46876892]
[1744589183604,6.604,1597.0,1596.8,0.53139254]
[1744589183914,5.00912,1597.1,1596.8,0.53139254]
[1744589183915,3.0,1597.1,1596.9,5.0097]
[1744589184115,12.07755439,1597.3,1597.0,0.46842018]
[1744589184321,13.10079557,1597.6,1597.1,0.8213]
[1744589184492,13.10079557,1597.6,1597.2,5.47631292]
[1744589184493,11.6116,1597.6,1597.2,5.47631292]
[1744589184696,58.74091,1597.8,1597.2,1.09750421]
[1744589185013,12.774,1597.9,1597.6,5.82863]
[1744589185014,7.06235733,1597.9,1597.6,5.82863]
[1744589185221,6.604,1597.9,1597.6,5.82863]
[1744589185392,6.604,1597.9,1597.7,0.46053704]
[1744589185785,5.00628,1598.0,1597.7,0.46053704]
[1744589185786,5.47623905,1598.0,1597.7,5.00719]
[1744589185985,5.00628,1598.0,1597.7,1.083582]
[1744589186219,5.00628,1598.0,1597.8,0.46048611]
[1744589186515,10.01275,1598.0,1597.8,0.46048611]
[1744589186926,0.02,1598.4,1598.0,5.00625]
[1744589187213,5.00563,1598.2,1598.1,0.95007571]
[1744589187415,5.02503,1598.4,1598.1,0.44945071]
[1744589187616,5.02503,1598.4,1598.1,5.06848702]
[1744589187617,0.02,1598.4,1598.1,5.06848702]
[1744589188010,0.02,1598.4,1598.2,0.44980999]
[1744589188409,0.02,1598.4,1598.1,5.00593]
[1744589188610,0.02,1598.4,1598.3,0.44959498]
[1744589188791,0.02,1598.4,1598.2,0.44980999]
[1744589188987,0.02,1598.4,1598.3,0.44959498]
[1744589189323,0.02,1598.4,1598.3,5.82661]
[1744589189497,0.02,1598.4,1598.3,1.26576746]
[1744589189701,0.02,1598.4,1598.3,6.89819921]
[1744589190083,0.02,1598.4,1598.3,6.96075607]
[1744589190291,0.02,1598.4,1598.3,6.89819921]
[1744589191522,0.02,1598.4,1598.3,1.26576746]
[1744589191888,0.02,1598.4,1598.3,1.32832713]
[1744589192139,0.02,1598.4,1598.3,1.32832714]
[1744589192723,5.025,1598.4,1598.3,0.44446746]
[1744589192908,0.02,1598.4,1598.0,0.761]
[1744589193104,0.02,1598.4,1598.2,5.00562]
[1744589193424,0.02,1598.4,1598.3,0.44413809]
[1744589194526,0.02,1598.4,1598.3,6.27301093]
[1744589194699,0.02,1598.4,1598.3,6.21044809]
[1744589194905,0.02,1598.4,1598.3,6.27300313]
[1744589195539,0.02,1598.4,1598.3,6.21044809]
[1744589195840,0.02,1598.4,1598.3,7.98722891]
[1744589196713,0.46269127,1599.2,1599.0,5.00306]
[1744589196925,0.46269127,1599.2,1599.1,5.50668793]
[1744589197094,0.02,1599.4,1599.2,5.76324]
[1744589197295,0.02,1599.4,1599.3,5.49814344]
[1744589197495,0.02,1599.4,1599.3,6.56176575]
[1744589197705,0.02,1599.4,1599.3,1.55958575]
[1744589197955,5.02187,1599.4,1599.3,0.43344741]
[1744589198117,5.02187,1599.4,1599.0,0.761]
[1744589198118,10.024,1599.4,1599.0,0.761]
[1744589198316,10.024,1599.4,1599.1,0.43063356]
[1744589198513,0.02,1599.4,1599.1,0.43063356]
[1744589198713,5.0023,1599.3,1599.1,0.43063356]
[1744589199538,5.0025,1599.2,1599.1,0.43063356]
[1744589199747,5.0023,1599.3,1599.0,5.00312]
[1744589199950,5.0023,1599.3,1599.1,0.42964923]
[1744589200099,5.0023,1599.3,1598.9,5.00327]
[1744589200449,5.02189,1599.4,1599.0,5.42898084]
[1744589200657,5.02189,1599.4,1599.0,10.43197084]
[1744589200818,5.02189,1599.4,1599.0,5.42890084]
[1744589201338,5.00232,1599.3,1599.0,0.42591084]
[1744589201536,5.00265,1599.2,1599.0,0.42591084]
[1744589202110,5.00218,1599.3,1599.0,0.42591084]
[1744589202329,10.00457,1599.3,1599.0,0.42591084]
[1744589202755,5.00252,1599.2,1599.0,0.42591084]
[1744589203119,5.02191,1599.4,1599.0,1.07652272]
[1744589203315,10.00469,1599.3,1599.0,1.07652272]
[1744589203610,5.0026,1599.2,1599.0,0.42591084]
[1744589203813,5.00231,1599.3,1599.0,0.42591084]
[1744589204016,5.00231,1599.3,1598.9,10.06907286]
[1744589204243,5.00231,1599.3,1599.1,0.42601995]
[1744589204441,5.00231,1599.3,1599.0,0.42623476]
[1744589204644,0.02,1599.4,1599.2,6.18910518]
[1744589204858,0.02,1599.4,1599.3,5.0646995]
[1744589205159,0.02,1599.4,1599.3,5.49006992]
[1744589205356,0.02,1599.4,1599.3,0.42537042]
[1744589205673,5.02187,1599.4,1599.3,0.42537042]
[1744589205960,0.02,1599.4,1599.3,0.42537042]
[1744589206143,0.02,1599.4,1599.3,1.05049786]
[1744589207363,5.02187,1599.4,1599.3,0.42537042]
[1744589207559,0.02,1599.4,1599.0,1.32960376]
[1744589207759,5.00235,1599.3,1599.1,0.42418297]
[1744589207967,5.00235,1599.3,1598.9,10.0066]
[1744589208127,5.00235,1599.3,1599.0,1.4248938]
[1744589208647,14.67588,1599.4,1599.0,0.4242338]
[1744589208847,5.00281,1599.1,1599.0,0.4242338]
[1744589209050,5.00281,1599.1,1598.8,0.7911]
[1744589209362,5.00281,1599.1,1598.9,0.38909795]
[1744589209771,5.00312,1599.0,1598.9,0.38909795]
[1744589209924,5.00369,1598.9,1598.5,5.79567]
[1744589210259,5.00369,1598.9,1598.6,0.35741921]
[1744589210453,5.00286,1599.1,1598.7,5.00394]
[1744589210659,14.67588,1599.4,1598.9,5.0034]
[1744589210660,5.00239,1599.3,1598.9,5.0034]
[1744589210859,10.00476,1599.3,1598.9,6.004111]
[1744589211065,5.00257,1599.2,1599.0,0.35668271]
[1744589212024,5.00237,1599.3,1599.0,0.35668271]
[1744589212224,10.00473,1599.3,1599.0,1.49306608]
[1744589212436,5.00254,1599.2,1598.9,5.00316]
[1744589212636,10.00523,1599.2,1598.8,5.0037]
[1744589212856,10.00523,1599.2,1599.0,0.35664171]
[1744589213071,10.00523,1599.2,1598.9,0.35685655]
[1744589213270,10.00523,1599.2,1599.1,0.3564269]
[1744589213475,10.00523,1599.2,1599.0,0.35664171]
[1744589213476,5.00254,1599.2,1599.0,0.35664171]
[1744589213663,5.00254,1599.2,1599.1,0.3564269]
[1744589214063,5.00254,1599.2,1598.8,10.00729]
[1744589214371,12.96700474,1599.4,1598.9,1.000729]
[1744589214575,10.00614,1599.1,1599.0,0.35664171]
[1744589214870,10.00614,1599.1,1598.7,5.79512]
[1744589215069,10.00614,1599.1,1599.0,0.35655972]
[1744589215264,10.00614,1599.1,1598.7,5.79512]
[1744589215461,10.00614,1599.1,1599.0,0.35647773]
[1744589215666,5.00389,1598.8,1598.5,0.7911]
[1744589215874,5.00343,1598.9,1598.3,2.01788082]
[1744589216180,5.00407,1598.7,1598.1,0.7911]
[1744589216542,5.00497,1598.5,1598.1,5.79703]
[1744589216797,10.00988,1598.5,1598.1,5.79691]
[1744589217144,5.00505,1598.4,1598.1,5.79691]
[1744589217737,5.00443,1598.6,1598.2,5.0054]
[1744589217983,5.00418,1598.7,1598.3,5.50569]
[1744589218174,0.8299,1598.8,1598.6,5.00429]
[1744589218375,5.47753943,1598.9,1598.5,5.79561]
[1744589218544,10.48114943,1598.9,1598.5,5.79561]
[1744589218875,5.00409,1598.7,1598.5,1.87741142]
[1744589219050,5.00409,1598.7,1598.3,6.29691]
[1744589219257,12.48603,1599.0,1598.3,0.7911]
[1744589219258,5.00479,1598.5,1598.3,0.7911]
[1744589219457,5.00479,1598.5,1598.4,0.36196953]
[1744589219849,5.00502,1598.4,1598.1,5.79694]
[1744589220187,5.00502,1598.4,1598.2,0.2880034]
[1744589220593,5.00502,1598.4,1598.1,5.85950359]
[1744589220801,5.00502,1598.4,1598.1,6.94607895]
[1744589220990,5.00479,1598.5,1598.1,11.95189895]
[1744589221184,8.00397,1598.8,1598.4,5.00477]
[1744589221358,8.00397,1598.8,1598.4,10.0096]
[1744589221556,3.0,1598.8,1598.4,1.00096]
[1744589221814,5.00432,1598.7,1598.4,1.00096]
[1744589222171,5.00449,1598.6,1598.4,1.00096]
[1744589222368,8.00376,1598.8,1598.2,0.7911]
[1744589222598,5.00467,1598.6,1598.3,0.06255977]
[1744589222800,5.00543,1598.3,1598.0,0.7911]
[1744589223097,5.00594,1598.1,1597.8,5.79787]
[1744589223271,5.00577,1598.2,1597.8,11.8851]
[1744589223472,3.0,1598.4,1598.1,5.00573]
[1744589223672,8.00515,1598.4,1598.1,5.00573]
[1744589224074,12.96487052,1598.6,1598.2,0.7911]
[1744589224272,11.65948,1598.6,1598.2,5.79657]
[1744589224471,5.00355,1598.9,1598.5,5.00442]
[1744589224472,5.46537322,1598.9,1598.5,5.00442]
[1744589224674,5.83319,1599.0,1598.6,5.00408]
[1744589224856,6.30065873,1599.0,1598.6,5.00408]
[1744589225086,66.299434,1599.1,1598.7,5.00393]
[1744589225087,65.29882,1599.1,1598.7,5.00393]
[1744589225406,65.29882,1599.1,1598.7,5.06647108]
[1744589225575,0.02,1599.4,1598.8,0.7707]
[1744589225576,5.84212,1599.4,1598.8,0.7707]
[1744589225772,5.84212,1599.4,1599.0,5.00297]
[1744589225978,5.02192,1599.4,1599.0,10.00591]
[1744589226602,5.00218,1599.3,1598.8,5.78149]
[1744589226907,5.00271,1599.2,1598.9,0.28742189]
[1744589227104,5.00281,1599.1,1598.9,0.28742189]
[1744589227301,5.00365,1598.9,1598.5,12.43635]
[1744589227467,5.00293,1599.1,1598.7,5.00392]
[1744589227666,10.00595,1599.1,1598.7,5.00392]
[1744589227861,5.00293,1599.1,1598.7,5.00392]
[1744589228062,5.00293,1599.1,1598.7,6.03933848]
[1744589228264,5.00293,1599.1,1598.7,11.04328848]
[1744589228701,5.00253,1599.2,1598.9,5.78117]
[1744589229103,0.48535773,1599.4,1599.1,5.0027]
[1744589229323,0.02,1599.4,1599.1,5.50297]
[1744589229497,0.02,1599.4,1599.1,10.50566]
[1744589229691,0.02,1599.4,1599.1,5.50296]
[1744589230097,0.02,1599.4,1599.1,5.56548532]
[1744589230297,0.02,1599.4,1599.2,0.55654853]
[1744589230984,0.02,1599.4,1599.2,5.55903853]
[1744589231187,0.02,1599.4,1599.3,0.35751492]
[1744589231702,0.02,1599.4,1599.3,1.13531492]
[1744589234616,0.02,1599.4,1599.3,5.35969492]
[1744589234775,0.02,1599.4,1599.3,5.95131926]
[1744589234975,0.02,1599.4,1599.3,0.94913926]
[1744589236692,5.02187,1599.4,1599.3,0.35751492]
[1744589236896,10.02401,1599.4,1599.1,0.7778]
[1744589237096,0.7872,1599.4,1599.2,0.35693874]
[1744589237424,5.00288,1599.1,1598.9,0.7778]
[1744589237599,11.76807,1599.4,1598.9,0.7778]
[1744589237936,16.77011,1599.4,1599.0,5.00285]
[1744589238140,5.00239,1599.3,1598.9,5.7812]
[1744589238307,10.00485,1599.3,1599.0,0.57812]
[1744589238895,5.7716,1599.2,1598.8,5.00371]
[1744589239127,10.00599,1599.1,1598.7,5.77095]
[1744589239426,5.77152,1599.2,1598.7,10.77489]
[1744589239627,5.00252,1599.2,1598.9,5.00343]
[1744589239826,10.0046,1599.3,1598.9,5.00343]
[1744589240033,5.00262,1599.2,1598.9,1.00696556]
[1744589240234,5.003,1599.1,1598.7,10.77485]
[1744589240534,5.00253,1599.2,1598.8,5.00369]
[1744589241037,5.00253,1599.2,1598.8,10.06973561]
[1744589241597,5.00253,1599.2,1598.7,0.7669]
[1744589241832,3.0,1599.3,1598.7,0.7669]
[1744589241833,8.00228,1599.3,1599.0,5.00309]
[1744589242126,11.76809,1599.4,1599.1,0.500309]
[1744589242431,11.76809,1599.4,1599.2,5.06490655]
[1744589242432,0.02,1599.4,1599.2,5.06490655]
[1744589242642,0.02,1599.4,1599.2,10.06728655]
[1744589243208,0.02,1599.4,1599.2,5.06490655]
[1744589243436,0.02,1599.4,1599.2,10.06727655]
[1744589243745,0.02,1599.4,1599.3,1.00672766]
[1744589244041,0.02,1599.4,1599.3,6.00890766]
[1744589244242,0.02,1599.4,1599.3,6.77580766]
[1744589244432,0.02,1599.4,1599.3,7.32580766]
[1744589245405,0.02,1599.4,1599.3,7.67086154]
[1744589245935,0.02,1599.4,1599.3,7.95775283]
[1744589246648,0.02,1599.4,1599.3,7.67086154]
[1744589246954,0.02,1599.4,1599.3,7.32580766]
[1744589247509,1e-05,1599.4,1599.3,16.54831164]
[1744589247731,6.765,1600.4,1599.8,0.55]
[1744589247732,0.02,1600.4,1599.8,0.55]
[1744589247953,0.02,1600.4,1600.2,4.99924]
[1744589248119,0.02,1600.4,1600.3,5.06153945]
[1744589248313,0.02,1600.4,1599.9,0.7669]
[1744589248314,0.02,1600.4,1600.1,4.99959]
[1744589248514,0.02,1600.4,1600.0,4.99996]
[1744589248709,0.02,1600.4,1600.2,4.99937]
[1744589249146,0.02,1600.4,1599.9,0.7669]
[1744589249318,0.02,1600.4,1600.3,0.34468622]
[1744589249647,0.02,1600.4,1600.1,5.06200538]
[1744589249808,0.02,1600.4,1600.3,0.34468622]
[1744589250007,0.02,1600.4,1600.1,5.50572054]
[1744589250246,0.02,1600.4,1600.3,0.33344335]
[1744589250447,0.789,1600.4,1600.2,0.33365776]
[1744589250654,5.78805,1600.4,1600.0,4.99997]
[1744589250857,5.78805,1600.4,1600.3,4.99906]
[1744589250858,0.02,1600.4,1600.3,4.99906]
[1744589251218,0.02,1600.4,1600.3,5.82843762]
[1744589251417,0.02,1600.4,1600.3,5.76596]
[1744589253258,0.02,1600.4,1600.3,6.37843103]
[1744589253553,0.02,1600.4,1600.3,6.9037371]
[1744589254366,1e-05,1600.4,1600.3,7.85961199]
[1744589254559,1e-05,1600.4,1600.3,7.79713898]
[1744589254852,1e-05,1600.4,1600.3,8.14513579]
[1744589255058,1e-05,1600.4,1600.3,11.34513579]
[1744589255252,0.4003441,1601.0,1600.9,6.37838]
[1744589255553,0.4003441,1601.0,1600.9,7.515955]
[1744589255944,0.4003441,1601.0,1600.9,10.5783995]
[1744589256143,4.1e-06,1601.0,1600.9,10.5783995]
[1744589256351,4.1e-06,1601.0,1600.9,10.57838929]
[1744589256545,0.02,1601.4,1601.3,4.99594]
[1744589256724,0.02,1601.4,1601.3,6.88877894]
[1744589257458,0.02,1601.4,1601.3,7.376346]
[1744589258358,0.02,1601.4,1601.3,6.826346]
[1744589258569,0.02,1601.4,1601.3,7.376346]
[1744589259171,0.13283851,1601.6,1601.5,9.37651]
[1744589259468,0.32570384,1603.0,1602.9,5.82215]
[1744589259625,5.0094,1603.4,1602.9,4.99082]
[1744589259826,0.02,1603.4,1602.5,4.99216]
[1744589260038,0.02,1603.4,1602.4,4.99235]
[1744589260039,9.98205,1602.9,1602.4,4.99235]
[1744589260245,0.7923,1603.0,1602.6,4.99172]
[1744589260450,5.78308,1603.0,1602.5,4.99218]
[1744589260759,4.99166,1602.7,1602.3,5.82385]
[1744589260928,4.99128,1602.8,1602.4,4.9925]
[1744589261125,9.98207,1602.9,1602.4,4.9925]
[1744589261365,0.7923,1602.6,1602.2,4.99299]
[1744589261564,4.99206,1602.6,1602.1,4.99341]
[1744589261765,4.99234,1602.5,1602.0,4.99375]
[1744589261930,0.499234,1602.4,1602.2,4.99299]
[1744589262135,4.99204,1602.6,1602.2,4.99299]
[1744589262336,7.7293,1602.7,1602.3,0.3013221]
[1744589262542,9.98463,1602.5,1601.9,0.8312]
[1744589262749,9.98463,1602.5,1602.0,4.99363]
[1744589263063,4.9923,1602.5,1602.1,5.35766967]
[1744589263253,5.79153,1602.5,1602.1,5.35766967]
[1744589263562,4.99273,1602.4,1602.1,0.30183167]
[1744589263754,5.78515,1602.3,1601.9,4.99404]
[1744589263957,5.78515,1602.3,1602.0,0.30224994]
[1744589264134,4.99321,1602.2,1602.0,0.30224994]
[1744589264329,4.99344,1602.1,1602.0,0.30224994]
[1744589264567,4.99376,1602.0,1601.6,4.99487]
[1744589264767,7.7263,1602.3,1601.5,0.937651]
[1744589264768,4.99407,1601.9,1601.5,0.937651]
[1744589264970,4.99407,1601.9,1601.3,5.994836]
[1744589264971,4.99471,1601.7,1601.3,5.994836]
[1744589265140,9.98952,1601.7,1601.3,5.994836]
[1744589265464,4.99471,1601.7,1601.3,5.994836]
[1744589265867,4.9944,1601.8,1601.0,6.934]
[1744589265868,4.99546,1601.5,1601.0,5.82792]
[1744589266076,0.7923,1601.5,1600.9,6.134535]
[1744589266279,4.99606,1601.3,1600.9,6.134535]
[1744589266442,4.99671,1601.1,1600.7,4.99752]
[1744589266754,4.99625,1601.2,1600.5,4.99842]
[1744589266755,4.99738,1600.9,1600.5,4.99842]
[1744589266959,0.7923,1601.0,1600.6,4.99788]
[1744589267155,0.7923,1601.0,1600.4,5.32381367]
[1744589267156,4.99741,1600.9,1600.4,4.99847]
[1744589267358,11.93141,1600.9,1600.5,4.99831]
[1744589267535,0.7923,1601.0,1600.7,4.99766]
[1744589267732,5.78933,1601.0,1600.6,0.499831]
[1744589267935,5.78931,1601.0,1600.5,4.99841]
[1744589268172,4.9975,1600.8,1600.5,4.99841]
[1744589268537,4.99731,1600.9,1600.5,4.99841]
[1744589268967,0.7923,1601.0,1600.7,4.99775]
[1744589269173,4.99678,1601.1,1600.8,0.499775]
[1744589269338,4.99691,1601.0,1600.5,5.54843]
[1744589269540,4.99678,1601.1,1600.7,4.99779]
[1744589269733,4.99678,1601.1,1600.8,0.0624605]
[1744589270383,5.75143,1601.2,1600.8,0.0624605]
[1744589270543,0.7551,1601.2,1600.9,4.99699]
[1744589270745,5.75141,1601.2,1601.0,0.499699]
[1744589270944,0.7551,1601.2,1600.9,4.99714]
[1744589271137,4.99565,1601.4,1601.0,4.99669]
[1744589271341,4.99565,1601.4,1601.0,9.99336]
[1744589271537,59.30941,1601.5,1600.8,0.55]
[1744589271738,4.9941,1601.9,1601.1,0.777]
[1744589271943,6.935,1602.0,1601.3,0.55]
[1744589272177,4.99491,1601.7,1601.3,4.99593]
[1744589272475,4.99491,1601.7,1601.4,0.06243352]
[1744589272674,4.99439,1601.8,1601.4,0.06243352]
[1744589272675,4.99439,1601.8,1601.4,5.05804352]
[1744589272974,9.98898,1601.8,1601.4,5.05804352]
[1744589273387,10.70401,1602.0,1601.6,4.99486]
[1744589273388,11.92877,1602.0,1601.6,4.99486]
[1744589273689,11.92877,1602.0,1601.6,0.499486]
[1744589273888,4.99423,1601.9,1601.5,9.99046]
[1744589274058,0.7551,1602.1,1601.6,0.06242476]
[1744589274259,0.7551,1602.1,1601.7,4.9944]
[1744589274455,0.7551,1602.1,1601.8,4.99434]
[1744589275860,0.7551,1602.1,1601.6,4.99497]
[1744589275861,4.99378,1602.0,1601.6,4.99497]
[1744589276151,4.99378,1602.0,1601.6,5.572167]
[1744589276354,4.99421,1601.9,1601.5,4.99525]
[1744589276557,4.99421,1601.9,1601.6,0.06242672]
[1744589277294,4.99421,1601.9,1601.6,0.06242781]
[1744589277598,4.99421,1601.9,1601.5,4.99515]
[1744589277782,4.99377,1602.0,1601.6,5.05739782]
[1744589277979,0.7551,1602.1,1601.6,1.0676826]
[1744589278163,12.68293,1602.3,1601.8,4.99423]
[1744589278511,12.68293,1602.3,1601.7,0.777]
[1744589278512,0.7551,1602.3,1601.9,4.99406]
[1744589278657,4.99314,1602.2,1601.9,4.99406]
[1744589278860,0.7551,1602.3,1602.0,5.23273036]
[1744589279061,4.99224,1602.5,1602.1,5.0557111]
[1744589279278,17.67209,1602.6,1602.2,4.99297]
[1744589279608,9.98612,1602.3,1601.9,5.493446]
[1744589280093,4.99313,1602.2,1602.0,0.23213305]
[1744589280302,4.99302,1602.3,1602.0,0.23213305]
[1744589280502,12.68001,1602.6,1602.0,0.23213305]
[1744589280503,4.99225,1602.5,1602.0,6.2540019]
[1744589280683,4.99225,1602.5,1602.1,4.99328]
[1744589281092,9.98464,1602.5,1602.2,0.23170497]
[1744589281264,4.99225,1602.5,1602.2,0.23170497]
[1744589281599,4.99175,1602.7,1602.3,4.99258]
[1744589281930,4.99175,1602.7,1602.4,0.06239833]
[1744589282063,4.99202,1602.6,1602.4,0.29131135]
[1744589282259,4.99219,1602.5,1602.2,6.7919305]
[1744589282471,4.99202,1602.6,1602.5,0.22914861]
[1744589282674,4.99202,1602.6,1602.3,5.05509206]
[1744589282874,4.99202,1602.6,1602.3,6.23977932]
[1744589283085,4.99202,1602.6,1602.4,0.22856103]
[1744589283492,4.99202,1602.6,1602.3,5.05518206]
[1744589283664,4.99202,1602.6,1602.5,0.22802386]
[1744589283861,9.98413,1602.6,1602.4,0.22815605]
[1744589284064,4.99338,1602.2,1601.8,4.99427]
[1744589284295,4.99143,1602.8,1601.9,3.8112]
[1744589284598,4.99143,1602.8,1602.4,9.98478]
[1744589284903,4.99185,1602.7,1602.3,4.99277]
[1744589285089,4.99192,1602.6,1602.3,4.99277]
[1744589285401,4.99185,1602.7,1602.4,0.06239887]
[1744589285894,9.98362,1602.7,1602.3,5.991256]
[1744589286096,9.98362,1602.7,1602.3,4.99267]
[1744589286299,6.931,1602.8,1602.1,4.99342]
[1744589286464,4.99236,1602.5,1602.2,5.05549473]
[1744589286796,7.99167,1602.7,1602.3,4.99262]
[1744589286998,7.99167,1602.7,1602.3,9.98527]
[1744589287578,7.99167,1602.7,1602.4,4.99245]
[1744589287770,11.92228,1602.8,1602.5,4.99208]
[1744589287771,11.92231,1602.8,1602.5,4.99208]
[1744589288515,6.931,1602.8,1602.5,4.99209]
[1744589288684,6.931,1602.8,1602.5,10.04656272]
[1744589289096,6.62807956,1603.1,1602.5,0.06239272]
[1744589289097,0.7926,1603.1,1602.5,0.06239272]
[1744589289425,6.73782304,1603.4,1603.1,9.98042]
[1744589289426,0.7926,1603.3,1603.1,9.98042]
[1744589289613,0.02,1603.4,1603.2,5.05218983]
[1744589289812,5.0094,1603.4,1602.9,4.99094]
[1744589290012,4.98978,1603.3,1602.9,4.99094]
[1744589290217,4.98978,1603.3,1602.9,9.98178]
[1744589290411,4.98978,1603.3,1602.9,5.989018]
[1744589290618,3.02,1603.4,1602.9,4.99091]
[1744589290820,0.02,1603.4,1602.7,12.73375]
[1744589291019,0.02,1603.4,1603.0,4.99048]
[1744589291183,0.02,1603.4,1603.1,5.05251323]
[1744589291387,0.02,1603.4,1603.2,4.98988]
[1744589291611,0.02,1603.4,1603.2,5.99411932]
[1744589291939,0.02,1603.4,1603.3,5.05206432]
[1744589292095,0.02,1603.4,1603.2,10.98399932]
[1744589292291,0.02,1603.4,1603.3,5.05206364]
[1744589292890,0.02,1603.4,1603.3,0.06236364]
[1744589293213,5.00939,1603.4,1602.9,5.80201]
[1744589293416,5.00939,1603.4,1603.0,5.05275271]
[1744589293581,5.00939,1603.4,1603.0,10.04327271]
[1744589293781,5.00939,1603.4,1603.0,5.05275271]
[1744589293984,0.02,1603.4,1603.2,4.98988]
[1744589294178,0.02,1603.4,1603.3,0.19046184]
[1744589294812,5.00939,1603.4,1603.3,0.19046184]
[1744589295019,0.02,1603.4,1603.3,0.19046184]